fUSD/lending_fUSD_20260630
["ID","MTS","AMOUNT","RATE_DAILY","PERIOD"]
[426786822,1782833438000,-283.0,0.00019599,2]
[426786832,1782833438000,-153.0,0.0002,2]
[426786828,1782833438000,-166.66,0.00019636,2]
[426786830,1782833438000,-337.0,0.0002,2]
[426786780,1782833438000,-1362.0,0.00016599,2]
[426786778,1782833438000,-170.0,0.00016438,2]
[426786725,1782833438000,-1072.18384778,0.00016438,2]
[426786786,1782833438000,-6088.0,0.00016599,2]
[426786784,1782833438000,-1231.0,0.00016599,2]
[426786727,1782833438000,-1072.18384778,0.00016438,2]
[426786729,1782833438000,-1072.18384778,0.00016438,2]
[426786734,1782833438000,-1072.18384778,0.00016438,2]
[426786740,1782833438000,-1072.18384778,0.00016438,2]
[426786731,1782833438000,-1072.18384778,0.00016438,2]
[426786736,1782833438000,-1072.18384778,0.00016438,2]
[426786742,1782833438000,-1072.18384778,0.00016438,2]
[426786744,1782833438000,-1072.18384778,0.00016438,2]
[426786747,1782833438000,-1072.18384778,0.00016438,2]
[426786750,1782833438000,-1072.18384778,0.00016438,2]
[426786749,1782833438000,-1072.18384778,0.00016438,2]
[426786745,1782833438000,-1072.18384778,0.00016438,2]
[426786738,1782833438000,-1072.18384778,0.00016438,2]
[426786754,1782833438000,-1072.18384778,0.00016438,2]
[426786752,1782833438000,-1072.18384778,0.00016438,2]
[426786772,1782833438000,-1072.18384783,0.00016438,2]
[426786776,1782833438000,-1072.18384782,0.00016438,2]
[426786768,1782833438000,-1072.18384778,0.00016438,2]
[426786764,1782833438000,-1072.18384778,0.00016438,2]
[426786770,1782833438000,-1072.18384783,0.00016438,2]
[426786766,1782833438000,-1072.18384778,0.00016438,2]
[426786774,1782833438000,-1072.18384783,0.00016438,2]
[426786756,1782833438000,-1072.18384778,0.00016438,2]
[426786760,1782833438000,-1072.18384778,0.00016438,2]
[426786758,1782833438000,-1072.18384778,0.00016438,2]
[426786762,1782833438000,-1072.18384778,0.00016438,2]
[426786915,1782833439000,-327.16938857,0.00023181,2]
[426786919,1782833439000,-248.18181818,0.00023419,2]
[426786913,1782833439000,-169.13373015,0.00023159,2]
[426786908,1782833439000,-223.0,0.00023,2]
[426786898,1782833439000,-1106.989648,0.00022833,2]
[426786910,1782833439000,-1214.22,0.00023113,7]
[426786902,1782833439000,-337.0,0.00023,2]
[426786893,1782833439000,-6088.0,0.00022599,2]
[426786896,1782833439000,-327.16938857,0.00022633,2]
[426786921,1782833439000,-187.04012721,0.00023468,2]
[426786906,1782833439000,-189.0,0.00023,2]
[426786923,1782833439000,-166.16466276,0.00023468,2]
[426786946,1782833439000,-180.69264522,0.00023488,2]
[426786925,1782833439000,-188.16378042,0.00023468,2]
[426786927,1782833439000,-187.25373348,0.00023468,2]
[426786931,1782833439000,-153.00494822,0.00023477,2]
[426786929,1782833439000,-157.50352797,0.00023477,2]
[426786933,1782833439000,-181.95537232,0.00023477,2]
[426786936,1782833439000,-195.85503765,0.00023477,2]
[426786940,1782833439000,-188.35233512,0.00023477,2]
[426786938,1782833439000,-150.49171637,0.00023477,2]
[426786942,1782833439000,-153.52164663,0.00023477,2]
[426786951,1782833439000,-180.71080534,0.00023488,2]
[426786944,1782833439000,-175.37479734,0.00023477,2]
[426786904,1782833439000,-153.0,0.00023,2]
[426786917,1782833439000,-221.6554765,0.00023414,2]
[426786900,1782833439000,-1129.0,0.00022964,2]
[426786856,1782833439000,-223.0,0.00021,2]
[426786887,1782833439000,-1362.0,0.00022599,2]
[426786955,1782833439000,-171.82845445,0.00023488,2]
[426786838,1782833439000,-4806.43,0.0002,2]
[426786840,1782833439000,-822.0,0.0002,2]
[426786844,1782833439000,-221.6554765,0.00020129,2]
[426786842,1782833439000,-166.66,0.00020018,2]
[426786846,1782833439000,-2000.0,0.00020221,2]
[426786848,1782833439000,-1106.989648,0.00020256,2]
[426786850,1782833439000,-337.0,0.00021,2]
[426786852,1782833439000,-153.0,0.00021,2]
[426786854,1782833439000,-189.0,0.00021,2]
[426786858,1782833439000,-166.66,0.00021098,2]
[426786862,1782833439000,-1106.989648,0.00021544,2]
[426786894,1782833439000,-200.0,0.00022619,2]
[426786860,1782833439000,-327.16938857,0.00021537,2]
[426786866,1782833439000,-221.6554765,0.00021771,2]
[426786871,1782833439000,-337.0,0.00022,2]
[426786869,1782833439000,-5000.0,0.00021918,2]
[426786872,1782833439000,-168.13373015,0.00022,2]
[426786874,1782833439000,-153.0,0.00022,2]
[426786876,1782833439000,-189.0,0.00022,2]
[426786878,1782833439000,-2985.5,0.00022,2]
[426786883,1782833439000,-327.16938857,0.00022085,2]
[426786889,1782833439000,-283.0,0.00022599,2]
[426786881,1782833439000,-223.0,0.00022,2]
[426786885,1782833439000,-251.2337487,0.00022344,2]
[426786891,1782833439000,-1231.0,0.00022599,2]
[426786864,1782833439000,-3517.08,0.00021557,2]
[426786959,1782833439000,-167.86138545,0.00023488,2]
[426786948,1782833439000,-183.23143458,0.00023488,2]
[426786953,1782833439000,-163.72617343,0.00023488,2]
[426787023,1782833439000,-374.08025441,0.00024719,2]
[426787027,1782833439000,-376.32756083,0.00024719,2]
[426787029,1782833439000,-374.50746695,0.00024719,2]
[426787033,1782833439000,-164.34492881,0.00024729,2]
[426787035,1782833439000,-306.00989645,0.00024729,2]
[426787025,1782833439000,-332.32932552,0.00024719,2]
[426787031,1782833439000,-171.99796831,0.00024719,2]
[426787037,1782833439000,-315.00705594,0.00024729,2]
[426787039,1782833439000,-363.91074465,0.00024729,2]
[426787041,1782833439000,-391.7100753,0.00024729,2]
[426787043,1782833439000,-300.98343274,0.00024729,2]
[426787054,1782833439000,-366.46286916,0.0002474,2]
[426787052,1782833439000,-361.38529043,0.0002474,2]
[426787058,1782833439000,-327.45234685,0.0002474,2]
[426787050,1782833439000,-350.74959468,0.00024729,2]
[426787048,1782833439000,-307.04329327,0.00024729,2]
[426787056,1782833439000,-361.42161068,0.0002474,2]
[426787046,1782833439000,-376.70467025,0.00024729,2]
[426787061,1782833439000,-343.6569089,0.0002474,2]
[426787063,1782833439000,-343.46166008,0.0002474,2]
[426787067,1782833439000,-335.72277091,0.0002474,2]
[426787071,1782833439000,-349.52239828,0.0002474,2]
[426787065,1782833439000,-171.16309782,0.0002474,2]
[426787073,1782833439000,-413.1120526,0.0002474,2]
[426787075,1782833439000,-179.22900514,0.0002474,2]
[426787018,1782833439000,-847.9592709,0.0002467,2]
[426787020,1782833439000,-170.97237158,0.00024719,2]
[426787069,1782833439000,-387.12507123,0.0002474,2]
[426787014,1782833439000,-187.16,0.00024658,2]
[426786957,1782833439000,-171.73083004,0.00023488,2]
[426786961,1782833439000,-193.56253561,0.00023488,2]
[426786963,1782833439000,-174.76119914,0.00023488,2]
[426786976,1782833439000,-150.89004457,0.00023525,2]
[426786982,1782833439000,-162.48,0.00023858,2]
[426786978,1782833439000,-327.16938857,0.00023729,2]
[426786967,1782833439000,-172.01834426,0.00023488,2]
[426787016,1782833439000,-4323.2272597,0.0002467,2]
[426786969,1782833439000,-180.18193206,0.00023488,2]
[426786965,1782833439000,-206.5560263,0.00023488,2]
[426786973,1782833439000,-216.89485082,0.0002352,2]
[426786974,1782833439000,-180.88289334,0.0002352,2]
[426786971,1782833439000,-176.7760019,0.0002352,2]
[426786980,1782833439000,-646.52000224,0.00023855,2]
[426786984,1782833439000,-337.0,0.00024,2]
[426786986,1782833439000,-153.0,0.00024,2]
[426787012,1782833439000,-180.7,0.00024658,2]
[426786995,1782833439000,-1106.989648,0.00024122,2]
[426786990,1782833439000,-223.0,0.00024,2]
[426787008,1782833439000,-437.72,0.00024658,2]
[426786992,1782833439000,-221.53729023,0.00024115,7]
[426787003,1782833439000,-162.23408352,0.0002421,6]
[426787001,1782833439000,-2629.644,0.0002421,6]
[426786998,1782833439000,-160.0,0.000242,3]
[426786988,1782833439000,-189.0,0.00024,2]
[426787006,1782833439000,-327.16938857,0.00024277,2]
[426787010,1782833439000,-1000.0,0.00024658,2]
[426787150,1782833440000,-153.20533043,0.00025563,2]
[426787154,1782833440000,-151.3056983,0.00025563,2]
[426787144,1782833440000,-545.86611697,0.00025563,2]
[426787142,1782833440000,-472.51058391,0.00025563,2]
[426787135,1782833440000,-159.77460004,0.00025563,2]
[426787140,1782833440000,-195.32764484,0.00025563,2]
[426787139,1782833440000,-153.37221337,0.00025563,2]
[426787137,1782833440000,-200.76766266,0.00025563,2]
[426787146,1782833440000,-459.01484467,0.00025563,2]
[426787148,1782833440000,-270.01981793,0.00025563,2]
[426787156,1782833440000,-587.56511296,0.00025563,2]
[426787176,1782833440000,-460.5649399,0.00025563,2]
[426787160,1782833440000,-451.47514911,0.00025563,2]
[426787164,1782833440000,-565.05700537,0.00025563,2]
[426787168,1782833440000,-162.02882278,0.00025563,2]
[426787162,1782833440000,-256.92717103,0.00025563,2]
[426787158,1782833440000,-209.53235286,0.00025563,2]
[426787178,1782833440000,-206.90720258,0.00025563,2]
[426787166,1782833440000,-219.01178064,0.00025563,2]
[426787170,1782833440000,-191.83637128,0.00025563,2]
[426787172,1782833440000,-248.8086034,0.00025563,2]
[426787181,1782833440000,-526.12439202,0.00025563,2]
[426787174,1782833440000,-184.74073108,0.00025563,2]
[426787134,1782833440000,-328.68985763,0.00025563,2]
[426787152,1782833440000,-221.34879818,0.00025563,2]
[426787122,1782833440000,-216.89506996,0.00025553,2]
[426787092,1782833440000,-161.0,0.0002484,3]
[426787116,1782833440000,-1106.989648,0.00025411,2]
[426787185,1782833440000,-229.10460203,0.00025563,2]
[426787077,1782833440000,-344.03668852,0.0002474,2]
[426787080,1782833440000,-360.36386412,0.0002474,2]
[426787082,1782833440000,-353.55200381,0.00024773,2]
[426787084,1782833440000,-433.78970164,0.00024773,2]
[426787099,1782833440000,-90247.22474069,0.00025,2]
[426787088,1782833440000,-166.57988047,0.0002478,2]
[426787101,1782833440000,-201.0,0.00025,2]
[426787105,1782833440000,-4184.92764564,0.00025026,2]
[426787103,1782833440000,-227.0,0.00025,2]
[426787096,1782833440000,-165.0,0.00025,2]
[426787107,1782833440000,-221.6554765,0.00025057,2]
[426787090,1782833440000,-327.16938857,0.00024825,2]
[426787094,1782833440000,-353.0,0.00025,2]
[426787109,1782833440000,-191.58230358,0.00025123,2]
[426787111,1782833440000,-300.51753852,0.00025123,2]
[426787130,1782833440000,-498.49398829,0.00025553,2]
[426787126,1782833440000,-561.12038162,0.00025553,2]
[426787128,1782833440000,-152.65090083,0.00025553,2]
[426787113,1782833440000,-327.16938857,0.00025373,2]
[426787118,1782833440000,-2337.0,0.0002548,3]
[426787120,1782833440000,-150.89004457,0.00025525,2]
[426787132,1782833440000,-561.76120043,0.00025553,2]
[426787133,1782833440000,-343.99593662,0.00025553,2]
[426787123,1782833440000,-341.94474315,0.00025553,2]
[426787131,1782833440000,-564.49134125,0.00025553,2]
[426787187,1782833440000,-549.69430374,0.00025575,2]
[426787086,1782833440000,-361.76578669,0.00024773,2]
[426787202,1782833440000,-156.81738704,0.00025575,2]
[426787255,1782833440000,-6088.0,0.00025599,2]
[426787259,1782833440000,-542.64868003,0.00025608,2]
[426787261,1782833440000,-650.68455246,0.00025608,2]
[426787257,1782833440000,-530.32800571,0.00025608,2]
[426787263,1782833440000,-333.15976093,0.00025615,2]
[426787266,1782833440000,-203.64751897,0.00025615,2]
[426787270,1782833440000,-166.60768888,0.000257,2]
[426787274,1782833440000,-233.79466418,0.000257,4]
[426787276,1782833440000,-163.02666272,0.000257,2]
[426787268,1782833440000,-201.97479328,0.00025615,2]
[426787272,1782833440000,-10344.0554,0.000257,2]
[426787277,1782833440000,-190.79589059,0.000257,2]
[426787280,1782833440000,-273.13548592,0.00025715,7]
[426787282,1782833440000,-1368.0,0.0002579,5]
[426787287,1782833440000,-1072.57038614,0.00025799,10]
[426787284,1782833440000,-151.0,0.00025797,7]
[426787293,1782833440000,-500.0,0.00025799,2]
[426787295,1782833440000,-500.0,0.00025799,2]
[426787296,1782833440000,-500.0,0.00025799,2]
[426787291,1782833440000,-500.0,0.00025799,2]
[426787289,1782833440000,-500.0,0.00025799,2]
[426787297,1782833440000,-496.14,0.00025799,2]
[426787301,1782833440000,-500.0,0.00025799,2]
[426787304,1782833440000,-500.0,0.00025799,2]
[426787191,1782833440000,-542.13241603,0.00025575,2]
[426787246,1782833440000,-152.0,0.00025592,2]
[426787244,1782833440000,-205.63061044,0.00025575,2]
[426787299,1782833440000,-500.0,0.00025799,2]
[426787242,1782833440000,-294.23888498,0.00025575,2]
[426787248,1782833440000,-1362.0,0.00025599,2]
[426787197,1782833440000,-269.26828906,0.00025575,2]
[426787193,1782833440000,-194.17929051,0.00025575,2]
[426787189,1782833440000,-542.07793565,0.00025575,2]
[426787195,1782833440000,-224.53956617,0.00025575,2]
[426787183,1782833440000,-218.86727046,0.00025563,2]
[426787204,1782833440000,-491.17852028,0.00025575,2]
[426787215,1782833440000,-342.32619565,0.00025575,2]
[426787211,1782833440000,-205.96938935,0.00025575,2]
[426787226,1782833440000,-619.66807889,0.00025575,2]
[426787213,1782833440000,-515.19249013,0.00025575,2]
[426787208,1782833440000,-515.48536335,0.00025575,2]
[426787200,1782833440000,-202.28156072,0.00025575,2]
[426787224,1782833440000,-524.28359741,0.00025575,2]
[426787219,1782833440000,-294.64122802,0.00025575,2]
[426787239,1782833440000,-540.54579618,0.00025575,2]
[426787237,1782833440000,-516.05503278,0.00025575,2]
[426787235,1782833440000,-200.00442473,0.00025575,2]
[426787230,1782833440000,-211.75368026,0.00025575,2]
[426787253,1782833440000,-1231.0,0.00025599,2]
[426787217,1782833440000,-503.58415636,0.00025575,2]
[426787206,1782833440000,-271.57515688,0.00025575,2]
[426787228,1782833440000,-246.44226183,0.00025575,2]
[426787222,1782833440000,-580.68760684,0.00025575,2]
[426787233,1782833440000,-358.45801027,0.00025575,2]
[426787251,1782833440000,-283.0,0.00025599,2]
[426787366,1782833441000,-515.99390493,0.00026109,2]
[426787368,1782833441000,-493.03478644,0.00026119,2]
[426787391,1782833441000,-753.4093405,0.00026119,2]
[426787379,1782833441000,-540.03963585,0.00026119,2]
[426787375,1782833441000,-630.01411188,0.00026119,2]
[426787384,1782833441000,-783.42015061,0.00026119,2]
[426787370,1782833441000,-401.53532532,0.00026119,2]
[426787372,1782833441000,-612.01979289,0.00026119,2]
[426787382,1782833441000,-419.06470571,0.00026119,2]
[426787381,1782833441000,-306.41066085,0.00026119,2]
[426787401,1782833441000,-369.48146216,0.00026119,2]
[426787386,1782833441000,-601.96686548,0.00026119,2]
[426787388,1782833441000,-513.85434206,0.00026119,2]
[426787393,1782833441000,-438.02356128,0.00026119,2]
[426787395,1782833441000,-324.05764555,0.00026119,2]
[426787397,1782833441000,-383.67274256,0.00026119,2]
[426787399,1782833441000,-497.61720679,0.00026119,2]
[426787404,1782833441000,-614.08658654,0.00026119,2]
[426787406,1782833441000,-701.49918935,0.00026119,2]
[426787363,1782833441000,-749.0149339,0.00026109,2]
[426787410,1782833441000,-722.77058087,0.00026131,2]
[426787377,1782833441000,-727.8214893,0.00026119,2]
[426787361,1782833441000,-752.65512167,0.00026109,2]
[426787340,1782833441000,-195669.13696057,0.00026,7]
[426787352,1782833441000,-433.79013993,0.00026109,2]
[426787408,1782833441000,-437.73454092,0.00026119,2]
[426787316,1782833441000,-316.22004234,0.000258,2]
[426787311,1782833441000,-1724156.7490155,0.000258,2]
[426787306,1782833441000,-500.0,0.00025799,2]
[426787309,1782833441000,-500.0,0.00025799,2]
[426787318,1782833441000,-170.0,0.000258,2]
[426787314,1782833441000,-34612.01943904,0.000258,2]
[426787320,1782833441000,-2795.0,0.00025853,3]
[426787333,1782833441000,-220.9790999,0.00026,2]
[426787322,1782833441000,-327.16938857,0.00025921,2]
[426787356,1782833441000,-748.16050883,0.00026109,2]
[426787336,1782833441000,-22767.0,0.00026,2]
[426787329,1782833441000,-1136.71647631,0.00026,2]
[426787338,1782833441000,-326.0,0.00026,2]
[426787331,1782833441000,-4617.9892356,0.00026,2]
[426787327,1782833441000,-150.0,0.00025992,5]
[426787343,1782833441000,-160.0,0.00026,7]
[426787345,1782833441000,-170.2714225,0.00026,2]
[426787347,1782833441000,-175.38,0.00026027,7]
[426787359,1782833441000,-664.65865105,0.00026109,2]
[426787354,1782833441000,-512.91711473,0.00026109,2]
[426787349,1782833441000,-599.17,0.000261,2]
[426787324,1782833441000,-613.53449459,0.0002599,2]
[426787415,1782833441000,-722.84322137,0.00026131,2]
[426787413,1782833441000,-732.92573833,0.00026131,2]
[426787500,1782833441000,-312.39699457,0.00026149,2]
[426787484,1782833441000,-169.30162061,0.00026149,2]
[426787471,1782833441000,-160.0,0.0002614,3]
[426787473,1782833441000,-160.0,0.0002614,3]
[426787487,1782833441000,-169.85179041,0.00026149,2]
[426787493,1782833441000,-396.32887216,0.00026149,2]
[426787478,1782833441000,-448.68890113,0.00026149,2]
[426787489,1782833441000,-356.64676795,0.00026149,2]
[426787491,1782833441000,-400.88397398,0.00026149,2]
[426787495,1782833441000,-365.07846617,0.00026149,2]
[426787498,1782833441000,-312.87282556,0.00026149,2]
[426787480,1782833441000,-390.82035399,0.00026149,2]
[426787502,1782833441000,-168.92687472,0.00026149,2]
[426787522,1782833441000,-386.86874385,0.00026149,2]
[426787524,1782833441000,-301.6332283,0.00026149,2]
[426787513,1782833441000,-166.53411534,0.00026149,2]
[426787526,1782833441000,-414.01866052,0.00026149,2]
[426787517,1782833441000,-421.81134063,0.00026149,2]
[426787515,1782833441000,-386.20069612,0.00026149,2]
[426787519,1782833441000,-265.76954164,0.00026149,2]
[426787531,1782833441000,-169.8757325,0.00026149,2]
[426787417,1782833441000,-390.65528969,0.00026131,2]
[426787529,1782833441000,-171.81201913,0.00026149,2]
[426787527,1782833441000,-369.68389563,0.00026149,2]
[426787482,1782833441000,-222.91719655,0.00026149,2]
[426787475,1782833441000,-161.7371867,0.00026149,2]
[426787467,1782833441000,-588.47776996,0.00026131,2]
[426787422,1782833441000,-302.61139661,0.00026131,2]
[426787426,1782833441000,-538.53657813,0.00026131,2]
[426787424,1782833441000,-388.35858102,0.00026131,2]
[426787419,1782833441000,-442.69759637,0.00026131,2]
[426787433,1782833441000,-543.15031377,0.00026131,2]
[426787437,1782833441000,-313.63477408,0.00026131,2]
[426787469,1782833441000,-411.26122089,0.00026131,2]
[426787435,1782833441000,-687.3138178,0.00026131,2]
[426787431,1782833441000,-654.90469371,0.00026131,2]
[426787439,1782833441000,-411.93877871,0.00026131,2]
[426787441,1782833441000,-686.92332017,0.00026131,2]
[426787443,1782833441000,-513.48929347,0.00026131,2]
[426787428,1782833441000,-404.56312144,0.00026131,2]
[426787454,1782833441000,-826.22410519,0.00026131,2]
[426787456,1782833441000,-492.88452366,0.00026131,2]
[426787460,1782833441000,-537.68701541,0.00026131,2]
[426787458,1782833441000,-423.50736051,0.00026131,2]
[426787445,1782833441000,-671.44554181,0.00026131,2]
[426787448,1782833441000,-589.28245604,0.00026131,2]
[426787465,1782833441000,-720.72772824,0.00026131,2]
[426787463,1782833441000,-688.07337703,0.00026131,2]
[426787450,1782833441000,-774.25014246,0.00026131,2]
[426787452,1782833441000,-699.04479655,0.00026131,2]
[426787623,1782833442000,-319.13733386,0.00026397,2]
[426787616,1782833442000,-330.600347,0.00026397,2]
[426787614,1782833442000,-275.75251538,0.00026397,2]
[426787618,1782833442000,-316.26450254,0.00026397,2]
[426787607,1782833442000,-1072.449619,0.00026384,2]
[426787620,1782833442000,-300.28296364,0.00026397,2]
[426787601,1782833442000,-153.55740133,0.00026382,2]
[426787597,1782833442000,-342.91394514,0.00026285,2]
[426787612,1782833442000,-1072.449619,0.00026384,2]
[426787605,1782833442000,-1072.449619,0.00026384,2]
[426787627,1782833442000,-250.8249149,0.00026397,2]
[426787610,1782833442000,-1072.449619,0.00026384,2]
[426787622,1782833442000,-274.59596536,0.00026397,2]
[426787647,1782833442000,-935.20063603,0.00026665,2]
[426787629,1782833442000,-28075.92807695,0.000264,2]
[426787633,1782833442000,-1072.449619,0.0002646,2]
[426787631,1782833442000,-160.0,0.0002646,3]
[426787635,1782833442000,-1072.449619,0.0002646,2]
[426787639,1782833442000,-1072.449619,0.0002646,2]
[426787637,1782833442000,-1072.449619,0.0002646,2]
[426787649,1782833442000,-940.81890209,0.00026665,2]
[426787653,1782833442000,-765.02474112,0.00026675,2]
[426787645,1782833442000,-237.0,0.00026521,2]
[426787643,1782833442000,-21669.33108996,0.000265,2]
[426787641,1782833442000,-327.16938857,0.00026469,2]
[426787599,1782833442000,-272.0,0.00026301,2]
[426787625,1782833442000,-339.6541038,0.00026397,2]
[426787585,1782833442000,-216.05795891,0.0002622,2]
[426787533,1782833442000,-165.42124226,0.00026149,2]
[426787595,1782833442000,-174.19192964,0.00026275,2]
[426787535,1782833442000,-331.87612719,0.00026149,2]
[426787544,1782833442000,-165.9365237,0.00026149,2]
[426787539,1782833442000,-161.48720874,0.00026149,2]
[426787542,1782833442000,-413.71011576,0.00026149,2]
[426787548,1782833442000,-214.03828431,0.00026149,2]
[426787538,1782833442000,-396.16219778,0.00026149,2]
[426787546,1782833442000,-317.24356466,0.00026149,2]
[426787551,1782833442000,-233.24553741,0.00026149,2]
[426787555,1782833442000,-166.07211996,0.0002615,2]
[426787553,1782833442000,-350.58697769,0.0002615,2]
[426787558,1782833442000,-707.10400761,0.00026165,2]
[426787560,1782833442000,-867.57940328,0.00026165,2]
[426787564,1782833442000,-194.15817916,0.00026172,2]
[426787566,1782833442000,-499.7396414,0.00026172,2]
[426787573,1782833442000,-209.96484872,0.00026196,2]
[426787570,1782833442000,-403.94958657,0.00026172,2]
[426787562,1782833442000,-723.53157338,0.00026165,2]
[426787568,1782833442000,-407.29503795,0.00026172,2]
[426787575,1782833442000,-439.89417369,0.00026204,2]
[426787577,1782833442000,-407.10233529,0.00026204,2]
[426787581,1782833442000,-439.24580139,0.00026204,2]
[426787579,1782833442000,-390.38435859,0.00026204,2]
[426787583,1782833442000,-160.41789385,0.0002621,2]
[426787591,1782833442000,-164.36863685,0.00026275,2]
[426787593,1782833442000,-188.98369876,0.00026275,2]
[426787589,1782833442000,-153.33589812,0.00026265,2]
[426787651,1782833442000,-936.26866738,0.00026665,2]
[426787754,1782833442000,-1072.44962,0.000268,2]
[426787657,1782833442000,-909.77686162,0.00026675,2]
[426787718,1782833442000,-1633220.85325811,0.000268,2]
[426787723,1782833442000,-437401.9738395,0.000268,2]
[426787727,1782833442000,-3190.39233846,0.000268,2]
[426787725,1782833442000,-161.47,0.000268,7]
[426787729,1782833442000,-160.0,0.000268,3]
[426787731,1782833442000,-1072.449619,0.000268,2]
[426787733,1782833442000,-1072.449619,0.000268,2]
[426787736,1782833442000,-1072.449619,0.000268,2]
[426787738,1782833442000,-1072.449619,0.000268,2]
[426787740,1782833442000,-1072.449619,0.000268,2]
[426787745,1782833442000,-1072.449619,0.000268,2]
[426787749,1782833442000,-1072.449619,0.000268,2]
[426787721,1782833442000,-29226.85190166,0.000268,2]
[426787751,1782833442000,-1072.449619,0.000268,2]
[426787753,1782833442000,-1072.449619,0.000268,2]
[426787759,1782833442000,-4193.0,0.00026887,10]
[426787756,1782833442000,-233.79466416,0.000268,5]
[426787761,1782833442000,-10647.08748402,0.00027,5]
[426787775,1782833442000,-160.0,0.00027,10]
[426787768,1782833442000,-530.0,0.00027,2]
[426787773,1782833442000,-18067.91,0.00027,10]
[426787763,1782833442000,-250.0,0.00027,2]
[426787766,1782833442000,-1057.82211812,0.00027,2]
[426787777,1782833442000,-327.1693887,0.00027017,2]
[426787771,1782833442000,-1000.0,0.00027,2]
[426787655,1782833442000,-787.51763985,0.00026675,2]
[426787747,1782833442000,-1072.449619,0.000268,2]
[426787708,1782833442000,-2337.0,0.0002678,3]
[426787742,1782833442000,-1072.449619,0.000268,2]
[426787714,1782833442000,-4905767.90261769,0.000268,2]
[426787705,1782833442000,-5000.0,0.00026743,2]
[426787661,1782833442000,-752.45858185,0.00026675,2]
[426787663,1782833442000,-941.76167562,0.00026675,2]
[426787665,1782833442000,-767.60823317,0.00026675,2]
[426787671,1782833442000,-818.63086713,0.00026687,2]
[426787667,1782833442000,-876.87398669,0.00026675,2]
[426787674,1782833442000,-839.30692727,0.00026687,2]
[426787676,1782833442000,-967.81267807,0.00026687,2]
[426787668,1782833442000,-903.46322608,0.00026687,2]
[426787669,1782833442000,-903.55402671,0.00026687,2]
[426787678,1782833442000,-873.80599569,0.00026687,2]
[426787680,1782833442000,-860.09172129,0.00026687,2]
[426787682,1782833442000,-900.9096603,0.00026687,2]
[426787659,1782833442000,-979.27518826,0.00026675,2]
[426787686,1782833442000,-1106.989648,0.000267,2]
[426787684,1782833442000,-316.22004234,0.000267,2]
[426787712,1782833442000,-7879.02983103,0.000268,2]
[426787703,1782833442000,-5000.0,0.00026743,2]
[426787710,1782833442000,-1293.79056515,0.000268,15]
[426787701,1782833442000,-5000.0,0.00026743,2]
[426787688,1782833442000,-221.6554765,0.000267,2]
[426787716,1782833442000,-106218.7202036,0.000268,2]
[426787691,1782833442000,-883.88000952,0.00026722,2]
[426787699,1782833442000,-5000.0,0.00026743,2]
[426787697,1782833442000,-5583.54634521,0.00026743,2]
[426787695,1782833442000,-904.41446672,0.00026722,2]
[426787693,1782833442000,-1084.4742541,0.00026722,2]
[426787864,1782833443000,-5000.0,0.00027225,2]
[426787857,1782833443000,-152.0,0.00027203,4]
[426787866,1782833443000,-251.2337487,0.00027379,2]
[426787841,1782833443000,-151.0,0.00027123,3]
[426787868,1782833443000,-163.89181531,0.00027397,3]
[426787845,1782833443000,-166.0,0.00027123,3]
[426787859,1782833443000,-5537.22157218,0.00027225,2]
[426787852,1782833443000,-503.0,0.00027137,2]
[426787854,1782833443000,-546.97,0.000272,14]
[426787848,1782833443000,-172.0,0.00027123,3]
[426787876,1782833443000,-500.0,0.00027397,2]
[426787861,1782833443000,-5000.0,0.00027225,2]
[426787870,1782833443000,-241.88338596,0.00027397,7]
[426787883,1782833443000,-500.0,0.00027397,2]
[426787874,1782833443000,-500.0,0.00027397,2]
[426787873,1782833443000,-373.17476563,0.00027397,2]
[426787872,1782833443000,-150.0,0.00027397,2]
[426787875,1782833443000,-599.35855389,0.00027397,2]
[426787881,1782833443000,-500.0,0.00027397,2]
[426787889,1782833443000,-500.0,0.00027397,12]
[426787879,1782833443000,-500.0,0.00027397,2]
[426787885,1782833443000,-500.0,0.00027397,2]